Cogmind - Beta 14 @@@ ROGUE MODE // 2024.11.11 @ 20:48:01 Player: MarKhan Result: Destroyed by P-80 Master with Gamma Rifle Performance ------------- Evolutions (9) 4500 Regions Visited (18) 3600 Robots Destroyed (165) 825 Value Destroyed (4017) 4017 Prototype IDs (42) 840 Alien Tech Used (0) 0 Bonus (2076) 2076 TOTAL SCORE: 15858 Bonus ------- High Alert Combat Kills 62 Follower Combat Kills 1217 Entered DSFs 500 Aligned with FarCom 300 Friendly Fire -3 Cogmind --------- Core Integrity 0/1600 Matter 170/300 Energy 98/100 System Corruption 17% Temperature Cool (0) Movement Core (50) Location -1/Access Parts ------- > --- POWER (1) -------- (None) > --- PROPULSION (2) --- (None) > --- UTILITY (20) ----- (None) > --- WEAPON (2) ------- (None) > --- INVENTORY (5) ---- Dispersion Rifle Advanced EMP Blaster Advanced Datajack Force Lance Peak State ------------ > --- POWER ------------ (None) > --- PROPULSION ------- (None) > --- UTILITY ---------- Machine Analyzer Enhanced Optical Array Advanced Signal Interpreter Advanced Terrain Scanner Advanced Terrain Scan Processor Improved Melee Analysis Suite Improved Melee Analysis Suite Advanced Melee Analysis Suite Nanoactuators Hacking Suite Hacking Suite Hacking Suite Hacking Suite Improved System Shield Improved System Restoration Module > --- WEAPON ----------- Makeshift Sword > --- INVENTORY -------- Long-range Proton Cannon Advanced EMP Blaster Advanced Datajack Force Lance Force Lance [Rating: 71] Favorites ----------- Power Light Ion Engine Engine Light Ion Engine Power Core Light Nuclear Core Propulsion None Utility Hacking Suite Device Structural Scanner Processor Visual Processing Unit Hackware Hacking Suite Protection Propulsion Shielding Weapon Axe Energy Gun Small Laser Energy Cannon Heavy Particle Cannon Ballistic Gun Flak Gun Ballistic Cannon Advanced Assault Cannon Launcher Grenade Launcher Impact Weapon Powered Hammer Slashing Weapon Axe Piercing Weapon Force Lance Special Melee Weapon Improved Datajack Build | -11 -10 -10 -9 -9 -9 -8 -8 -7 -6 -6 -5 -4 -4 -4 -3 -2 -2 -1 ------- Run | Yrd Mat Min Mat Min Exi Min Mat Fac Fac Ext Fac Fac Upp Upp Res Res DSF Acc Slots Evolved 18 | . . . 2 . . . 2 2 2 . 2 2 . . 2 2 . 2 Power . | . . . . . . . . . . . . . . . . . . . Propulsion . | . . . . . . . . . . . . . . . . . . . Utility 18 | . . . 2 . . . 2 2 2 . 2 2 . . 2 2 . 2 Weapon . | . . . . . . . . . . . . . . . . . . . Parts Attached 212 | 4 14 5 12 11 2 2 57 45 8 14 6 8 . 2 8 . 2 12 Power 15 | . 2 . 3 . . . 4 6 . . . . . . . . . . Engine 13 | . 2 . 3 . . . 4 4 . . . . . . . . . . Core 2 | . . . . . . . . 2 . . . . . . . . . . Reactor . | . . . . . . . . . . . . . . . . . . . Propulsion . | . . . . . . . . . . . . . . . . . . . Treads . | . . . . . . . . . . . . . . . . . . . Leg . | . . . . . . . . . . . . . . . . . . . Wheel . | . . . . . . . . . . . . . . . . . . . Hover . | . . . . . . . . . . . . . . . . . . . Flight . | . . . . . . . . . . . . . . . . . . . Utility 79 | 2 1 1 6 2 1 . 18 19 4 5 4 6 . 1 3 . 2 4 Device 33 | 2 . 1 3 2 1 . 7 7 1 1 3 2 . . 1 . . 2 Storage . | . . . . . . . . . . . . . . . . . . . Processor 29 | . 1 . 3 . . . 9 8 2 . . 4 . 1 1 . . . Hackware 13 | . . . . . . . 2 3 1 1 1 . . . 1 . 2 2 Protection 4 | . . . . . . . . 1 . 3 . . . . . . . . Artifact . | . . . . . . . . . . . . . . . . . . . Weapon 118 | 2 11 4 3 9 1 2 35 20 4 9 2 2 . 1 5 . . 8 Energy Gun 22 | 2 10 1 . . . . 6 3 . . . . . . . . . . Energy Cannon 3 | . . . . 2 . . . . . . . . . . 1 . . . Ballistic Gun 1 | . . . . . . . . . . 1 . . . . . . . . Ballistic Cannon 3 | . . . . . . . . . 1 2 . . . . . . . . Launcher 7 | . 1 1 . 2 . . 1 1 . . . . . . . . . 1 Special Weapon . | . . . . . . . . . . . . . . . . . . . Impact Weapon 24 | . . . 2 1 . . 13 6 1 1 . . . . . . . . Slashing Weapon 35 | . . 1 . 1 . 1 9 8 1 3 1 2 . 1 2 . . 5 Piercing Weapon 4 | . . . . . . . . . . . . . . . 2 . . 2 Special Melee Weapon 19 | . . 1 1 3 1 1 6 2 1 2 1 . . . . . . . Unidentified Prototypes 5 | . . . . . . . 3 2 . . . . . . . . . . Corrupted Parts 1 | . . . . . . . . 1 . . . . . . . . . . System Corruption 6 | . . . . . . . . 6 . . . . . . . . . . Parts Lost 42 | . . . . 3 . . 4 9 . 8 1 1 1 . 6 . 3 6 Power 4 | . . . . . . . . 3 . 1 . . . . . . . . Propulsion . | . . . . . . . . . . . . . . . . . . . Utility 27 | . . . . 2 . . 4 3 . 4 . . 1 . 5 . 3 5 Weapon 11 | . . . . 1 . . . 3 . 3 1 1 . . 1 . . 1 Highest Loss Streak 6 | . . . . 2 . . 4 4 . 4 1 1 1 . 6 . 3 6 To Critical Strikes . | . . . . . . . . . . . . . . . . . . . Average Slot Usage (%) 68 | . 52 51 72 52 44 49 71 81 85 69 53 60 73 72 62 43 38 12 Engine 4 | . 2 . 9 5 . . 6 5 6 . . . . . . . . . Device 13 | . 14 14 29 24 22 22 14 13 12 3 1 11 15 10 3 . . . Processor 24 | . 6 14 11 11 11 11 26 34 27 26 23 23 36 35 32 30 27 2 Hackware 9 | . . . . . . . 6 10 17 16 17 21 21 21 20 8 7 5 Protection 1 | . . . . . . . . . 6 11 . . . . . . . . Energy Gun 1 | . 27 3 . . . . . . . . . . . . . . . . Impact Weapon 3 | . . . 6 1 . . 4 5 6 5 . . . . . . . . Slashing Weapon 7 | . . 12 11 5 . 5 10 8 5 1 7 2 . 4 3 4 2 2 Special Melee Weapon 1 | . . 7 4 2 11 11 1 . . 3 1 1 . . . . . . Peak Build Rating 71 | 6 8 8 14 14 16 13 24 36 40 40 39 60 60 61 71 45 45 31 Average Rating 26 | 2 4 7 12 9 8 9 20 32 38 33 32 44 59 60 55 45 40 14 On Entrance 26 | . 6 5 8 13 7 8 13 22 34 40 36 39 60 56 61 45 45 8 Naked Turns 45 | . . . . . . . . . . . . . . . . . . 45 Heaviest Build 16 | 4 12 5 11 11 11 6 10 13 16 13 12 6 3 4 6 2 2 6 Greatest Support 12 | 3 3 3 9 9 3 3 12 12 12 12 3 3 3 3 3 3 3 3 Greatest Overweight (x) 4 | 1 3 1 1 3 3 1 3 1 1 4 3 1 . 1 1 . . 1 Average Overweight (x) . | . . . . . . . . . . 2 . . . . . . . . Largest Inventory Capacity 5 | 5 5 5 5 5 5 5 5 5 5 5 5 5 5 5 5 5 5 5 Average Capacity 5 | 5 5 5 5 5 5 5 5 5 5 5 5 5 5 5 5 5 5 5 Most Carried 5 | 3 5 5 5 5 5 5 5 5 5 5 5 5 5 5 5 3 4 5 Average Carried 4 | 1 4 4 4 4 4 4 4 4 4 4 4 4 5 4 4 3 3 4 Final Capacity 5 | 5 5 5 5 5 5 5 5 5 5 5 5 5 5 5 5 5 5 5 Final Carried 5 | 2 5 5 5 5 5 5 5 5 5 5 5 5 5 5 3 3 4 4 Class Distribution -------------------- 19% | Hacker-Scout 16% | Scavenger-Scout 15% | Mutant 10% | Hacker-Assassin 7% | Scavenger-Mutant 6% | Scavenger-Assassin 6% | Scavenger-Gladiator 3% | Gladiator 3% | Commander-Assassin Dominant Class ---------------- Mutant | -10/Materials Mutant | -10/Mines Scavenger-Mutant | -9/Materials Mutant | -9/Mines Mutant | -9/Exiles Scout | -8/Mines Scavenger-Scout | -8/Materials Scavenger-Scout | -7/Factory Hacker-Scout | -6/Factory Hacker-Assassin | -6/Extension Hacker-Assassin | -5/Factory Hacker-Assassin | -4/Factory Hacker-Scout | -4/Upper Caves Hacker-Assassin | -4/Upper Caves Hacker-Scout | -3/Research Hacker-Scout | -2/Research Hacker-Scout | -2/DSF Mutant | -1/Access Resources | -11 -10 -10 -9 -9 -9 -8 -8 -7 -6 -6 -5 -4 -4 -4 -3 -2 -2 -1 ----------- Run | Yrd Mat Min Mat Min Exi Min Mat Fac Fac Ext Fac Fac Upp Upp Res Res DSF Acc Matter Collected 2376 | 240 133 167 120 82 93 . 540 486 139 211 45 . . 100 20 . . . Remotely . | . . . . . . . . . . . . . . . . . . . Salvage Created 6986 | 139 169 169 136 82 . . 2693 2204 359 519 38 . . 320 158 . . . Parts 345 | 9 15 18 14 12 . . 122 118 11 5 6 . . 3 12 . . . Haulers Intercepted 11 | . . . . . . . 6 3 2 . . . . . . . . . Recyclers Shooed 4 | . . . . . . . 2 1 1 . . . . . . . . . Parts Field Recycled . | . . . . . . . . . . . . . . . . . . . Retrieved Matter . | . . . . . . . . . . . . . . . . . . . Parts Self-Destructed . | . . . . . . . . . . . . . . . . . . . Prevented . | . . . . . . . . . . . . . . . . . . . Kills | -11 -10 -10 -9 -9 -9 -8 -8 -7 -6 -6 -5 -4 -4 -4 -3 -2 -2 -1 ------- Run | Yrd Mat Min Mat Min Exi Min Mat Fac Fac Ext Fac Fac Upp Upp Res Res DSF Acc Combat Hostiles Destroyed 75 | . 6 6 . 5 . . 27 22 2 4 . . . . 2 . . 1 Melee 45 | . . 3 . 1 . . 17 20 2 . . . . . 2 . . . Guns 9 | . 3 . . . . . 5 . . 1 . . . . . . . . Cannons 1 | . . . . 1 . . . . . . . . . . . . . . AOE 10 | . 3 3 . 3 . . . 1 . . . . . . . . . . Classes Destroyed 13 | 2 3 . 3 . . . 2 3 . . . . . . . . . . Worker 16 | . . . 1 1 . . 10 4 . . . . . . . . . . Builder 16 | . . . 5 . . . 8 3 . . . . . . . . . . Tunneler 6 | 3 . 2 . . . . 1 . . . . . . . . . . . Hauler 11 | . . . . . . . 6 3 2 . . . . . . . . . Recycler 20 | 1 . . . . . . 7 10 . 2 . . . . . . . . Mechanic 2 | . . . 1 . . . 1 . . . . . . . . . . . Operator 7 | . . . . . . . . 3 . 1 2 . . . 1 . . . Watcher 12 | . 2 . . . . . 5 4 1 . . . . . . . . . Swarmer 16 | . 3 3 . 4 . . 2 4 . . . . . . . . . . Grunt 39 | . 3 3 . 1 . . 18 12 1 1 . . . . . . . . Sentry 10 | . . . . . . . 7 1 . 2 . . . . . . . . Hunter 3 | . . . . . . . . 2 . 1 . . . . . . . . Programmer 7 | . . . . . . . . 3 1 . . . . . 2 . . 1 Best Kill Streak 10 | 4 4 3 2 3 . . 10 4 2 1 1 . . . 2 . . 1 Combat Bots Only 4 | . 4 3 . 2 . . 4 4 1 1 . . . . 2 . . 1 Max Kills in Single Turn 2 | 2 2 1 1 2 . . 1 1 1 1 1 . . . 1 . . 1 Gunslinging . | . . . . . . . . . . . . . . . . . . . Exploded 2 | . 2 1 . 1 . . . 1 . . . . . . . . . . Melee 1 | . . 1 . 1 . . 1 1 1 . . . . . 1 . . . Uniques/NPCs Destroyed . | . . . . . . . . . . . . . . . . . . . Combat | -11 -10 -10 -9 -9 -9 -8 -8 -7 -6 -6 -5 -4 -4 -4 -3 -2 -2 -1 -------- Run | Yrd Mat Min Mat Min Exi Min Mat Fac Fac Ext Fac Fac Upp Upp Res Res DSF Acc Hostile Shots Fired 687 | . 22 7 6 14 . . 66 122 12 148 2 . 4 . 107 . 22 155 Missed 235 | . 8 1 2 5 . . 19 31 2 48 1 . 2 . 32 . 6 78 Damage Taken 7461 | . 144 94 76 131 . . 681 1319 175 1122 73 86 37 . 956 . 628 1939 Core 4970 | . 54 45 43 81 . . 315 668 109 563 58 70 16 . 741 . 592 1615 Absorbed by Shields . | . . . . . . . . . . . . . . . . . . . Regen/Repaired (Parts) 142 | . . . . . . . 85 15 42 . . . . . . . . . Core Remaining (%) 58 | 100 . 60 . . . 69 42 4 . 20 94 . . 92 43 . 59 . Volleys Fired 93 | 7 19 9 . 9 . . 27 2 6 13 . . . . 1 . . . Largest 2 | 2 2 1 . 1 . . 2 1 1 1 . . . . 1 . . . Hottest 122 | 80 112 30 . 75 . . 122 36 48 48 . . . . 81 . . . Shots Fired 129 | 14 38 9 . 9 . . 37 2 6 13 . . . . 1 . . . Gun 90 | 14 36 . . . . . 37 . . 3 . . . . . . . . Cannon 20 | . . . . 3 . . . . 6 10 . . . . 1 . . . Launcher 19 | . 2 9 . 6 . . . 2 . . . . . . . . . . Special . | . . . . . . . . . . . . . . . . . . . Kinetic 19 | . . . . . . . . . 6 13 . . . . . . . . Thermal 90 | 14 36 . . 3 . . 37 . . . . . . . . . . . Explosive 17 | . 2 9 . 6 . . . . . . . . . . . . . . Electromagnetic 3 | . . . . . . . . 2 . . . . . . 1 . . . Robot Hit Streak 15 | 4 12 2 . 1 . . 15 . . 4 . . . . . . . . Robot Miss Streak 3 | 1 2 1 . 3 . . 1 1 . 2 . . . . . . . . Penetration Max . | . . . . . . . . . . . . . . . . . . . Secondary Targets 2 | . 2 . . . . . . . . . . . . . . . . . Max Gunslinging Chain 1 | . 1 . . . . . . . . . . . . . . . . . Shots Hit Robots 437 | 10 26 12 16 3 7 4 137 99 27 52 6 . . 6 16 . . 16 Core Hits 157 | 5 10 10 2 8 . . 54 43 6 5 3 . . 4 4 . . 3 Critical Kills 1 | . . . . . . . 1 . . . . . . . . . . . Critical Parts Destroyed 16 | . . . 1 . . . 9 2 . 4 . . . . . . . . Critical Strikes 46 | . 2 . 2 . . . 18 12 4 5 . . . . 1 . . 2 Burn 5 | . 2 . . . . . 3 . . . . . . . . . . . Smash 17 | . . . 1 . . . 10 2 . 4 . . . . . . . . Sever 24 | . . . 1 . . . 5 10 4 1 . . . . 1 . . 2 Melee Attacks 618 | . . 10 25 4 7 4 165 181 43 52 13 5 . 7 38 3 . 61 Impact 80 | . . . 1 1 . . 35 21 3 19 . . . . . . . . Slashing 465 | . . 5 19 3 . 1 124 157 39 10 12 5 . 7 30 3 . 50 Piercing 19 | . . . . . . . . . . . . . . . 8 . . 11 Sneak Attacks 155 | . . 8 13 . 7 4 50 37 6 26 3 . . . . . . 1 Combat Hostiles 11 | . . 1 . . . . 4 5 1 . . . . . . . . . Follow-up Attacks 27 | . . . . . . . 13 8 2 1 . . . . 3 . . . Damage Inflicted 17042 | 121 479 511 642 267 . 78 6116 4704 1069 961 302 . . 459 699 . . 634 Guns 1024 | 121 315 . . . . . 560 . . 28 . . . . . . . . Cannons 114 | . . . . 25 . . . . . 89 . . . . . . . . Explosions 715 | . 164 251 . 213 . . . 87 . . . . . . . . . . Melee 15189 | . . 260 642 29 . 78 5556 4617 1069 844 302 . . 459 699 . . 634 Ramming . | . . . . . . . . . . . . . . . . . . . Kinetic 117 | . . . . . . . . . . 117 . . . . . . . . Thermal 1021 | 121 315 . . 25 . . 560 . . . . . . . . . . . Explosive 628 | . 164 251 . 213 . . . . . . . . . . . . . . Electromagnetic 87 | . . . . . . . . 87 . . . . . . . . . . Impact 2267 | . . . 48 . . . 1165 388 103 563 . . . . . . . . Slashing 12446 | . . 260 594 29 . 78 4391 4229 966 281 302 . . 459 341 . . 516 Piercing 476 | . . . . . . . . . . . . . . . 358 . . 118 Highest Corruption 17 | . . . . . . . . 7 2 2 . . . . 6 . 1 17 Average Corruption 3 | . . . . . . . . 4 2 2 . . . . 5 . 1 12 Corruption Purged 5 | . . . . . . . . 5 . . . . . . . . . . Corruption Blocked 8 | . . . . . . . . . . . . . . . . . 8 . Effects 37 | . . . . . . . . 15 1 11 . . . . 4 . . 6 Message Errors 11 | . . . . . . . . 4 . 3 . . . . 2 . . 2 Matter Fused 7 | . . . . . . . . 4 . 2 . . . . . . . 1 Heat Flow Errors 8 | . . . . . . . . 3 1 3 . . . . . . . 1 Energy Discharges 4 | . . . . . . . . 2 . . . . . . 1 . . 1 Parts Rejected 1 | . . . . . . . . . . . . . . . 1 . . . Parts Fused 2 | . . . . . . . . 1 . 1 . . . . . . . . Data Loss (minor) 2 | . . . . . . . . 1 . 1 . . . . . . . . Data Loss (major) 1 | . . . . . . . . . . 1 . . . . . . . . Misdirections 1 | . . . . . . . . . . . . . . . . . . 1 Overload Shots . | . . . . . . . . . . . . . . . . . . . Overflow Damage 2832 | . 5 16 282 14 . 38 1265 622 106 348 . . . 114 6 . . 16 Projectiles 12 | . . . . . . . . . . 12 . . . . . . . . Explosions 19 | . 5 . . 14 . . . . . . . . . . . . . . Melee 2801 | . . 16 282 . . 38 1265 622 106 336 . . . 114 6 . . 16 Knockbacks 11 | . . . 1 . . . 5 3 . 2 . . . . . . . . Impact 10 | . . . 1 . . . 5 3 . 1 . . . . . . . . Kinetic 1 | . . . . . . . . . . 1 . . . . . . . . Secondary . | . . . . . . . . . . . . . . . . . . . Self-Inflicted Damage 101 | . . 50 . 51 . . . . . . . . . . . . . . Shots 4 | . . 2 . 2 . . . . . . . . . . . . . . Rammed . | . . . . . . . . . . . . . . . . . . . Targets Rammed . | . . . . . . . . . . . . . . . . . . . Kicked . | . . . . . . . . . . . . . . . . . . . Crushed . | . . . . . . . . . . . . . . . . . . . Highest Temperature 343 | 40 343 . . 84 . . 135 192 191 192 . . . . . . . 237 Average Temperature 67 | 21 85 . . 45 . . 43 85 85 90 . . . . . . . 133 Received Heat Transfer 1131 | . 42 . 27 9 . . 351 384 72 195 9 . 21 . 12 . . 9 Effects 1 | . 1 . . . . . . . . . . . . . . . . . Shutdowns 1 | . 1 . . . . . . . . . . . . . . . . . Siege Activations . | . . . . . . . . . . . . . . . . . . . Robots Corrupted 16 | . . . 1 . . . 7 3 . 5 . . . . . . . . Combat Hostiles 9 | . . . . . . . 5 1 . 3 . . . . . . . . Parts Fried 34 | . . . 2 . . . 24 3 . 5 . . . . . . . . Impact Corruptions 46 | . . . 3 . . . 20 8 1 14 . . . . . . . . Robots Melted . | . . . . . . . . . . . . . . . . . . . Combat Hostiles . | . . . . . . . . . . . . . . . . . . . Parts Melted 3 | . 2 . . . . . 1 . . . . . . . . . . . Heat Transferred 2498 | 275 928 . . 37 . . 1258 . . . . . . . . . . . Parts Sabotaged . | . . . . . . . . . . . . . . . . . . . Parts Stolen . | . . . . . . . . . . . . . . . . . . . Parts Stripped . | . . . . . . . . . . . . . . . . . . . Power Chain Reactions . | . . . . . . . . . . . . . . . . . . . Alert | -11 -10 -10 -9 -9 -9 -8 -8 -7 -6 -6 -5 -4 -4 -4 -3 -2 -2 -1 ------- Run | Yrd Mat Min Mat Min Exi Min Mat Fac Fac Ext Fac Fac Upp Upp Res Res DSF Acc Peak Influence 553 | 20 224 377 542 403 . . 553 484 245 345 369 168 . . 97 31 23 189 Initial 251 | . 13 87 73 150 . . . 251 164 17 168 151 . . . 22 23 . Average 223 | 5 62 220 285 342 . . 286 321 113 65 243 86 . . 47 26 18 88 Maximum Alert Level 2 | . 1 1 2 2 . . 2 2 1 1 1 . . . . . . . Low Security (%) 45 | 100 90 48 37 3 . 100 30 . 83 92 36 100 . . 100 100 100 100 Level 1 43 | . 9 51 49 44 . . 48 84 16 7 63 . . . . . . . Level 2 11 | . . . 12 51 . . 20 15 . . . . . . . . . . Level 3 . | . . . . . . . . . . . . . . . . . . . Level 4 . | . . . . . . . . . . . . . . . . . . . Level 5 . | . . . . . . . . . . . . . . . . . . . High Security . | . . . . . . . . . . . . . . . . . . . Max Security . | . . . . . . . . . . . . . . . . . . . Squads Dispatched 26 | . 1 1 . . . . 2 10 1 1 3 1 . . 4 . 1 1 Investigation 5 | . 1 1 . . . . 2 1 . . . . . . . . . . Extermination 7 | . . . . . . . . 3 1 . . 1 . . 1 . . 1 Reinforcement 14 | . . . . . . . . 6 . 1 3 . . . 3 . 1 . Assault . | . . . . . . . . . . . . . . . . . . . Garrison . | . . . . . . . . . . . . . . . . . . . Intercept . | . . . . . . . . . . . . . . . . . . . Searches Triggered . | . . . . . . . . . . . . . . . . . . . Construction Impeded 2 | . . . . . . . . 2 . . . . . . . . . . Haulers Reinforced 2 | . . . . . . . . 2 . . . . . . . . . . Active Scanning Responses . | . . . . . . . . . . . . . . . . . . . Cargo Convoy Interrupts . | . . . . . . . . . . . . . . . . . . . Stealth | -11 -10 -10 -9 -9 -9 -8 -8 -7 -6 -6 -5 -4 -4 -4 -3 -2 -2 -1 --------- Run | Yrd Mat Min Mat Min Exi Min Mat Fac Fac Ext Fac Fac Upp Upp Res Res DSF Acc Distress Signals 13 | . . . 1 . . . 6 3 . 1 . . . . . . . 2 Communications Jammed . | . . . . . . . . . . . . . . . . . . . Distress Signals . | . . . . . . . . . . . . . . . . . . . Times Spotted 193 | . 8 9 15 9 . . 38 37 7 25 4 . 3 . 11 . 6 21 Peak Tracking Total 9 | . 3 3 5 3 . . 3 4 2 5 2 1 4 . 4 . 6 9 Tactical Retreats 20 | . 1 1 . 1 . . 3 5 1 1 . . . . 1 . . 6 Traps | -11 -10 -10 -9 -9 -9 -8 -8 -7 -6 -6 -5 -4 -4 -4 -3 -2 -2 -1 ------- Run | Yrd Mat Min Mat Min Exi Min Mat Fac Fac Ext Fac Fac Upp Upp Res Res DSF Acc Traps Triggered 6 | . 1 . . . . . . 2 . 1 . 1 . . . . . 1 Indirectly . | . . . . . . . . . . . . . . . . . . . Trap Hack Attempts . | . . . . . . . . . . . . . . . . . . . Triggered . | . . . . . . . . . . . . . . . . . . . Disarmed 4 | . . . 4 . . . . . . . . . . . . . . . Reprogrammed . | . . . . . . . . . . . . . . . . . . . Reused . | . . . . . . . . . . . . . . . . . . . Traps Extracted . | . . . . . . . . . . . . . . . . . . . Installed . | . . . . . . . . . . . . . . . . . . . Triggered . | . . . . . . . . . . . . . . . . . . . Machines | -11 -10 -10 -9 -9 -9 -8 -8 -7 -6 -6 -5 -4 -4 -4 -3 -2 -2 -1 ---------- Run | Yrd Mat Min Mat Min Exi Min Mat Fac Fac Ext Fac Fac Upp Upp Res Res DSF Acc Machines Disabled 8 | . . 1 2 . . . 3 1 . 1 . . . . . . . . Max in Single Turn 1 | . . 1 1 . . . 1 1 . 1 . . . . . . . . Garrison Access 3 | . . . . . . . 1 1 . . . . . . 1 . . . Machines Repaired . | . . . . . . . . . . . . . . . . . . . Machines Dismantled . | . . . . . . . . . . . . . . . . . . . Machines Sabotaged . | . . . . . . . . . . . . . . . . . . . Overloaded Fab Kills . | . . . . . . . . . . . . . . . . . . . Hacking | -11 -10 -10 -9 -9 -9 -8 -8 -7 -6 -6 -5 -4 -4 -4 -3 -2 -2 -1 --------- Run | Yrd Mat Min Mat Min Exi Min Mat Fac Fac Ext Fac Fac Upp Upp Res Res DSF Acc Machines Accessed 69 | . . 2 7 . 1 . 16 15 7 12 1 2 . . 3 2 . 1 Terminals 48 | . . 1 6 . . . 11 8 5 12 1 . . . 1 2 . 1 Fabricators 3 | . . . . . . . . 2 . . . 1 . . . . . . Repair Stations 4 | . . . . . . . 2 1 1 . . . . . . . . . Recycling Units 6 | . . . . . . . 2 1 1 . . 1 . . 1 . . . Scanalyzers 3 | . . . 1 . . . . 2 . . . . . . . . . . Garrison Access 3 | . . . . . . . 1 1 . . . . . . 1 . . . Total Hacks 199 | . . 4 25 . 1 . 57 49 17 24 4 4 . . 8 3 . 3 Successful 135 | . . 3 16 . 1 . 39 33 10 19 2 4 . . 7 1 . . Failed 64 | . . 1 9 . . . 18 16 7 5 2 . . . 1 2 . 3 Catastrophic 3 | . . . . . . . 1 1 . . . . . . . . . 1 Database Lockouts . | . . . . . . . . . . . . . . . . . . . Manual 107 | . . 1 18 . 1 . 34 26 12 4 3 3 . . 5 . . . Terminals 146 | . . 3 23 . . . 45 27 11 24 4 . . . 3 3 . 3 Fabricators 9 | . . . . . . . . 7 . . . 2 . . . . . . Repair Stations 10 | . . . . . . . 5 2 3 . . . . . . . . . Recycling Units 19 | . . . . . . . 6 5 3 . . 2 . . 3 . . . Scanalyzers 9 | . . . 2 . . . . 7 . . . . . . . . . . Garrison Access 4 | . . . . . . . 1 1 . . . . . . 2 . . . Terminal Hacks 43 | . . 2 3 . 1 . 12 6 1 15 1 . . . 1 1 . . Record 1 | . . . . . . . . . . 1 . . . . . . . . Part Schematic 5 | . . . . . . . . 2 . 3 . . . . . . . . Robot Analysis 4 | . . . 1 . . . 3 . . . . . . . . . . . Open Door 11 | . . 1 . . . . . . 1 9 . . . . . . . . Open DSF 1 | . . . . . . . . . . . . . . . . 1 . . Level Access Points 2 | . . . . . . . . . . . 1 . . . 1 . . . Branch Access Points 1 | . . . . . . . 1 . . . . . . . . . . . Emergency Access Points 2 | . . . . . . . 2 . . . . . . . . . . . Terminal Index 3 | . . . . . . . 1 1 . 1 . . . . . . . . Fabricator Index 1 | . . . . . . . . 1 . . . . . . . . . . Unreport Threat 1 | . . . . . . . . 1 . . . . . . . . . . Locate Traps 2 | . . . . . . . 1 1 . . . . . . . . . . Disarm Traps 1 | . . . 1 . . . . . . . . . . . . . . . Maintenance Status 1 | . . . . . . . 1 . . . . . . . . . . . Patrol Status 1 | . . . . . . . 1 . . . . . . . . . . . Recall Reinforcements 1 | . . . . . . . 1 . . . . . . . . . . . Hauler Manifests 1 | . . . . . . . . . . 1 . . . . . . . . Zone Layout 3 | . . 1 1 . . . 1 . . . . . . . . . . . Derelict Proto ID Bank 1 | . . . . . 1 . . . . . . . . . . . . . Fabricator Hacks 6 | . . . . . . . . 5 . . . 1 . . . . . . Network Status 3 | . . . . . . . . 2 . . . 1 . . . . . . Load Schematic 2 | . . . . . . . . 2 . . . . . . . . . . Build 1 | . . . . . . . . 1 . . . . . . . . . . Repair Station Hacks 7 | . . . . . . . 3 2 2 . . . . . . . . . Scan Component 4 | . . . . . . . 2 1 1 . . . . . . . . . Repair 3 | . . . . . . . 1 1 1 . . . . . . . . . Recycling Unit Hacks 1 | . . . . . . . 1 . . . . . . . . . . . Retrieve Components 1 | . . . . . . . 1 . . . . . . . . . . . Scanalyzer 8 | . . . 2 . . . . 6 . . . . . . . . . . Insert Component 3 | . . . 1 . . . . 2 . . . . . . . . . . Analyze 5 | . . . 1 . . . . 4 . . . . . . . . . . Garrison Access Hacks 3 | . . . . . . . 1 1 . . . . . . 1 . . . Seal Access 3 | . . . . . . . 1 1 . . . . . . 1 . . . Unauthorized Hacks 67 | . . 1 11 . . . 22 13 7 4 1 3 . . 5 . . . Terminals 51 | . . 1 11 . . . 19 8 5 4 1 . . . 2 . . . Track 5 | . . 1 1 . . . 3 . . . . . . . . . . . Assimilate 8 | . . . 1 . . . 4 . 2 . . . . . 1 . . . Botnet 17 | . . . 3 . . . 6 2 2 2 1 . . . 1 . . . Operators 4 | . . . 1 . . . 1 1 . 1 . . . . . . . . Skim 17 | . . . 5 . . . 5 5 1 1 . . . . . . . . Fabricators 3 | . . . . . . . . 2 . . . 1 . . . . . . Prioritize 1 | . . . . . . . . 1 . . . . . . . . . . Liberate 1 | . . . . . . . . . . . . 1 . . . . . . Haulers 1 | . . . . . . . . 1 . . . . . . . . . . Repair Stations . | . . . . . . . . . . . . . . . . . . . Recycling Units 13 | . . . . . . . 3 3 2 . . 2 . . 3 . . . Monitor 3 | . . . . . . . 1 1 . . . . . . 1 . . . Reject 5 | . . . . . . . 1 1 1 . . 1 . . 1 . . . Recyclers 5 | . . . . . . . 1 1 1 . . 1 . . 1 . . . Scanalyzers . | . . . . . . . . . . . . . . . . . . . Garrison Access . | . . . . . . . . . . . . . . . . . . . Data Cores Recovered 1 | . . . . . . . . . . 1 . . . . . . . . Used 1 | . . . . . . . . . . 1 . . . . . . . . Hacking Detections 54 | . . 1 7 . . . 15 12 6 5 1 2 . . 2 2 . 1 Full Trace Events 3 | . . . . . . . 2 1 . . . . . . . . . . Feedback Events . | . . . . . . . . . . . . . . . . . . . Feedback Blocked . | . . . . . . . . . . . . . . . . . . . Robot Schematics Acquired . | . . . . . . . . . . . . . . . . . . . Robots Built . | . . . . . . . . . . . . . . . . . . . Authchips . | . . . . . . . . . . . . . . . . . . . Time . | . . . . . . . . . . . . . . . . . . . Total Robot Build Rating . | . . . . . . . . . . . . . . . . . . . Part Schematics Acquired 8 | . . . 1 . . . . 4 . 3 . . . . . . . . Parts Built 2 | . . . . . . . . 2 . . . . . . . . . . Authchips . | . . . . . . . . . . . . . . . . . . . Time 36 | . . . . . . . . 36 . . . . . . . . . . Total Part Build Rating 6 | . . . . . . . . 6 . . . . . . . . . . Parts Repaired 3 | . . . . . . . 1 1 1 . . . . . . . . . Time 112 | . . . . . . . 44 38 30 . . . . . . . . . Parts Recycled . | . . . . . . . . . . . . . . . . . . . Recycled Matter . | . . . . . . . . . . . . . . . . . . . Retrieved Matter . | . . . . . . . . . . . . . . . . . . . Retrieved Components 9 | . . . . . . . 9 . . . . . . . . . . . Parts Scanalyzed 3 | . . . 1 . . . . 2 . . . . . . . . . . Part Schematics Acquired 3 | . . . 1 . . . . 2 . . . . . . . . . . Parts Damaged . | . . . . . . . . . . . . . . . . . . . Bothacking | -11 -10 -10 -9 -9 -9 -8 -8 -7 -6 -6 -5 -4 -4 -4 -3 -2 -2 -1 ------------ Run | Yrd Mat Min Mat Min Exi Min Mat Fac Fac Ext Fac Fac Upp Upp Res Res DSF Acc Used RIF Installer . | . . . . . . . . . . . . . . . . . . . Robots Hacked 26 | . . 3 5 . 6 3 5 2 1 . 1 . . . . . . . Non-combat 23 | . . 3 5 . 4 2 5 2 1 . 1 . . . . . . . Combat 3 | . . . . . 2 1 . . . . . . . . . . . . Robot Hacks Applied 29 | . . 4 5 . 6 3 6 3 1 . 1 . . . . . . . parse_system 8 | . . . . . 6 1 1 . . . . . . . . . . . no_distress 18 | . . 4 5 . . 2 5 2 . . . . . . . . . . find_recycling 1 | . . . . . . . . . 1 . . . . . . . . . check_alert 2 | . . . . . . . . 1 . . 1 . . . . . . . Relay Couplers Released . | . . . . . . . . . . . . . . . . . . . Fabnet Peak Effective % . | . . . . . . . . . . . . . . . . . . . Robots Rewired 14 | . . . . . . . . . . 14 . . . . . . . . Allies Hacked . | . . . . . . . . . . . . . . . . . . . Hacks Repelled . | . . . . . . . . . . . . . . . . . . . Allies | -11 -10 -10 -9 -9 -9 -8 -8 -7 -6 -6 -5 -4 -4 -4 -3 -2 -2 -1 -------- Run | Yrd Mat Min Mat Min Exi Min Mat Fac Fac Ext Fac Fac Upp Upp Res Res DSF Acc Total Allies 40 | . . 4 1 2 . . 3 . 2 27 . . . . 1 . . . Largest Group 12 | . . 3 3 5 4 2 5 3 2 12 9 2 . . 1 . . . Highest-Rated Group 396 | . . 55 57 102 71 26 88 46 52 396 396 51 . . 45 . . . Highest-Rated Ally 159 | . . 31 31 31 31 16 26 26 26 159 159 31 . . 45 . . . Total Orders 97 | . . . 4 8 . . 33 38 10 4 . . . . . . . . STAY 59 | . . . 2 4 . . 22 23 6 2 . . . . . . . . FOLLOW 38 | . . . 2 4 . . 11 15 4 2 . . . . . . . . Ally Attacks 322 | . . 13 71 13 . . 7 . . 170 44 4 . . . . . . Total Damage 5485 | . . 120 875 137 . . 111 . . 3492 646 104 . . . . . . Kills 47 | . . 3 14 3 . . 1 . . 18 7 1 . . . . . . Allies Corrupted 2 | . . . . . . . . . . 1 . 1 . . . . . . Allies Melted 2 | . . . . 1 . . . . . 1 . . . . . . . . Intel | -11 -10 -10 -9 -9 -9 -8 -8 -7 -6 -6 -5 -4 -4 -4 -3 -2 -2 -1 ------- Run | Yrd Mat Min Mat Min Exi Min Mat Fac Fac Ext Fac Fac Upp Upp Res Res DSF Acc Robot Analysis Total 4 | . . . 1 . . . 3 . . . . . . . . . . . Derelict Logs Recovered 5 | . . 2 . 2 . . . . . . . . 1 . . . . . Drone Launches . | . . . . . . . . . . . . . . . . . . . Drone Recoveries . | . . . . . . . . . . . . . . . . . . . Exploration | -11 -10 -10 -9 -9 -9 -8 -8 -7 -6 -6 -5 -4 -4 -4 -3 -2 -2 -1 ------------- Run | Yrd Mat Min Mat Min Exi Min Mat Fac Fac Ext Fac Fac Upp Upp Res Res DSF Acc Turns Passed 13361 | 57 349 699 698 410 202 61 3850 2881 946 1070 169 649 97 126 484 54 61 498 Spaces Moved 12346 | 54 331 690 440 312 286 77 3464 2978 825 523 154 738 193 115 477 95 57 537 Core 12346 | 54 331 690 440 312 286 77 3464 2978 825 523 154 738 193 115 477 95 57 537 Treads . | . . . . . . . . . . . . . . . . . . . Legs . | . . . . . . . . . . . . . . . . . . . Wheels . | . . . . . . . . . . . . . . . . . . . Hover . | . . . . . . . . . . . . . . . . . . . Flight . | . . . . . . . . . . . . . . . . . . . Fastest Speed 50 | 50 50 50 50 50 50 50 50 50 50 50 50 50 50 50 50 50 50 50 Average Speed 65 | 51 58 90 69 71 51 64 69 50 50 159 80 61 50 93 52 50 50 51 Slowest Speed 250 | 100 200 100 100 200 200 100 200 100 100 250 200 100 50 100 100 50 50 100 Overloaded Moves . | . . . . . . . . . . . . . . . . . . . Propulsion Burnouts . | . . . . . . . . . . . . . . . . . . . Robots Hopped . | . . . . . . . . . . . . . . . . . . . Cave-ins Triggered 1 | . . . . . . . . . . . . . . . . . . 1 Exploration Rate (%) 37 | 4 48 98 38 52 66 27 81 42 14 64 5 16 49 19 12 4 51 15 Regions Visited 18 Branch Regions 7 Pre-discovered Areas 11 | . . . 4 1 . . 1 4 . . . . 1 . . . . . Known Exits Taken 12 | . . . 1 . . 1 1 1 1 1 1 1 1 1 1 1 . . Unknown Exits Taken 5 | 1 1 1 . 1 1 . . . . . . . . . . . . . Scrap Searched 4 | . . 1 . . . . . . . . . . . 3 . . . . Spaces Dug 181 | . . . 8 1 . . 28 49 14 7 7 5 . 1 22 3 . 36 Terrain Destroyed 312 | . 12 68 8 51 . . 28 49 14 8 7 5 . 1 22 3 . 36 Melee 171 | . . . 8 1 . . 28 49 9 2 7 5 . 1 22 3 . 36 Projectile 13 | . . . . 2 . . . . 5 6 . . . . . . . . AOE 128 | . 12 68 . 48 . . . . . . . . . . . . . . Terrain Rammed . | . . . . . . . . . . . . . . . . . . . Walls Destroyed . | . . . . . . . . . . . . . . . . . . . Machines Disabled . | . . . . . . . . . . . . . . . . . . . Actions | -11 -10 -10 -9 -9 -9 -8 -8 -7 -6 -6 -5 -4 -4 -4 -3 -2 -2 -1 --------- Run | Yrd Mat Min Mat Min Exi Min Mat Fac Fac Ext Fac Fac Upp Upp Res Res DSF Acc Total 16621 | 67 443 742 791 480 338 84 4623 4110 1283 700 182 922 192 126 667 97 88 686 Wait 3167 | . 71 22 308 142 42 . 882 861 399 57 3 160 . . 139 . 29 52 Move 12328 | 53 330 689 439 311 285 76 3463 2977 824 522 153 737 192 114 476 94 56 537 Hop . | . . . . . . . . . . . . . . . . . . . Pick Up 46 | 3 4 2 3 . 1 1 11 6 4 3 1 4 . 1 1 . . 1 Fast Attach 89 | 3 2 2 2 . . . 22 26 2 8 4 5 . 2 5 . 2 4 Attach 37 | 1 1 . 2 2 2 1 5 5 1 2 2 3 . . 3 . . 7 Detach 46 | . 2 . 1 2 1 . 11 9 1 1 2 4 . 1 3 . 1 7 Swap 86 | . 11 3 8 9 . 1 30 14 5 4 . . . . . . . 1 Drop 80 | . 3 5 3 1 . 1 26 20 1 6 4 4 . 1 4 . . 1 Fire 93 | 7 19 9 . 9 . . 27 2 6 13 . . . . 1 . . . Melee 565 | . . 10 25 4 7 4 146 154 40 51 13 5 . 7 35 3 . 61 Ram . | . . . . . . . . . . . . . . . . . . . Kick . | . . . . . . . . . . . . . . . . . . . Crush . | . . . . . . . . . . . . . . . . . . . Escape Stasis 66 | . . . . . . . . 36 . 15 . . . . . . . 15 Rewire 18 | . . . . . . . . . . 18 . . . . . . . . Trap . | . . . . . . . . . . . . . . . . . . . Miscellaneous . | . . . . . . . . . . . . . . . . . . . Route ------- -11/Scrapyard -10/Materials (discovered 2 exits: *Mat / *Min) -10/Mines (discovered 3 exits: *Mat x2 / [*Sub]) -9/Materials (discovered 6 exits: *Mat x3 / *Min x2 / *Sto) -9/Mines (discovered 2 exits: *Mat / *Exi) -9/Exiles (discovered 2 exits: [*Min x2]) -8/Mines -8/Materials (discovered 3 exits: *Fac x3) -7/Factory (discovered 6 exits: *Fac x4 / *Low x2) -6/Factory -6/Extension (discovered 2 exits: *Fac / *Cet) -5/Factory (discovered 4 exits: *Fac x4) -4/Factory -4/Upper Caves -4/Upper Caves -3/Research (discovered 3 exits: *Res x3) -2/Research -2/DSF -1/Access History --------- Turn | Location | Event 10 | -11/Scrapyard | Discovered new exit (range 15) 58 | -11/Scrapyard | Entered Materials 109 | -10/Materials | Discovered new exit (range 14) 313 | -10/Materials | Build established: Mutant 382 | -10/Materials | Discovered new exit (range 17) 407 | -10/Materials | Entered Mines 496 | -10/Mines | Assembled infested the area 498 | -10/Mines | Met a Derelict shopkeep closing up shop 574 | -10/Mines | Discovered new exit (range 7) 611 | -10/Mines | Assisted by bots powering up and referring to "LRC-V3" 665 | -10/Mines | Learned 8 Materials zone layouts 764 | -10/Mines | Escorted by a lone wolf Derelict 924 | -10/Mines | Discovered new exit (range 14) 1055 | -10/Mines | Discovered new exit (range 4) 1106 | -10/Mines | Entered Materials 1106 | -9/Materials | Accompanied by 3 allies 1106 | -9/Materials | Evolved 2 slots: Utility x2 1107 | -9/Materials | Identified exit to Storage 1108 | -9/Materials | Identified exit to Materials 1428 | -9/Materials | Discovered new exit (range 7) 1543 | -9/Materials | Identified exit to Mines 1563 | -9/Materials | Build established: Scavenger-Mutant 1686 | -9/Materials | Learned location of 3 exits from Materials 1726 | -9/Materials | Learned location of 1 exit from Storage 1804 | -9/Materials | Entered Mines 1804 | -9/Mines | Accompanied by 3 allies 1828 | -9/Mines | Discovered exit to Materials (range 12) 2017 | -9/Mines | Found a hidden stash of uninstalled traps 2048 | -9/Mines | Learned 4 Materials zone layouts 2075 | -9/Mines | Deemed a non-threat by the Exiles lab entrance 2075 | -9/Mines | Discovered new exit (range 6) 2214 | -9/Mines | Entered Exiles 2214 | -9/Exiles | Accompanied by 4 allies 2227 | -9/Exiles | Discovered new exit (range 16) 2233 | -9/Exiles | Met 8R-AWN 2235 | -9/Exiles | Build established: Mutant 2262 | -9/Exiles | Met EX-HEX 2285 | -9/Exiles | Met EX-BIN 2293 | -9/Exiles | Aligned with FarCom system 2293 | -9/Exiles | Given EX-Vault access code 2306 | -9/Exiles | Opened EX-Vault 2309 | -9/Exiles | Found Cloak of Protection 2325 | -9/Exiles | Warned to stay clear of 0b10 Research branches 2333 | -9/Exiles | Exiles lab attacked by MAIN.C 2375 | -9/Exiles | Discovered new exit (range 12) 2416 | -9/Exiles | Left Exiles lab with Cloak of Protection 2416 | -9/Exiles | Entered Mines 2416 | -8/Mines | Accompanied by 2 allies 2454 | -8/Mines | Discovered exit to Materials (range 6) 2477 | -8/Mines | Entered Materials 2477 | -8/Materials | Accompanied by 2 allies 2477 | -8/Materials | Evolved 2 slots: Utility x2 2478 | -8/Materials | Identified exit to Factory 2757 | -8/Materials | Build established: Assassin 4129 | -8/Materials | Build established: Scavenger-Assassin 4325 | -8/Materials | Repaired Broken Maul 4637 | -8/Materials | Build established: Hacker-Scout 4791 | -8/Materials | Lost 4 parts (4u) 5059 | -8/Materials | Core integrity fell below 50% 5380 | -8/Materials | Build established: Gladiator 5875 | -8/Materials | Build established: Scavenger-Scout 6228 | -8/Materials | Learned location of 1 exit from Recycling 6265 | -8/Materials | Learned location of Zion (-7) 6293 | -8/Materials | Learned location of 1 exit from Recycling 6318 | -8/Materials | Learned location of 1 exit from Extension 6327 | -8/Materials | Entered Factory 6327 | -7/Factory | Accompanied by 3 allies 6327 | -7/Factory | Evolved 2 slots: Utility x2 6328 | -7/Factory | Identified exit to Factory 6410 | -7/Factory | Discovered new exit (range 10) 6416 | -7/Factory | Identified exit to Lower Caves 6878 | -7/Factory | Lost 3 parts (1p1u1w) 8253 | -7/Factory | Build established: Scavenger-Gladiator 8270 | -7/Factory | Fabricated Katana (x2) 8425 | -7/Factory | Core integrity fell below 50% 8437 | -7/Factory | Core integrity fell below 20% 8467 | -7/Factory | Lost 4 parts (1p1u2w) 8824 | -7/Factory | Repaired Katana 9034 | -7/Factory | Learned location of 1 exit from Upper Caves 9096 | -7/Factory | Learned location of Proximity Caves (-6) 9127 | -7/Factory | Learned 4 Lower Caves zone layouts 9140 | -7/Factory | Learned location of Warlord (-4) 9208 | -7/Factory | Entered another Factory area 9208 | -6/Factory | Evolved 2 slots: Utility x2 9630 | -6/Factory | Build established: Hacker-Scout 9647 | -6/Factory | Repaired Adv. EMP Blaster 9656 | -6/Factory | Discovered new exit (range 9) 10149 | -6/Factory | Identified exit to Extension 10154 | -6/Factory | Entered Extension 10154 | -6/Extension | Accompanied by 2 allies 10155 | -6/Extension | Identified exit to Cetus 10247 | -6/Extension | Lost 4 parts (1p2u1w) 10347 | -6/Extension | Rescued a captive Derelict 10537 | -6/Extension | Rescued a captive Derelict 10538 | -6/Extension | Rescued a captive Derelict 10585 | -6/Extension | Rescued a captive Derelict 10586 | -6/Extension | Rescued a captive Derelict 10658 | -6/Extension | Core integrity fell below 50% 10717 | -6/Extension | Lost 8 allies 10790 | -6/Extension | Rescued a captive Derelict 10791 | -6/Extension | Rescued a captive Derelict 10797 | -6/Extension | Rescued a captive Derelict 10833 | -6/Extension | Rescued a captive Derelict 10928 | -6/Extension | Build established: Hacker-Assassin 11006 | -6/Extension | Rescued a captive Derelict 11061 | -6/Extension | Rescued a captive Derelict 11062 | -6/Extension | Rescued a captive Derelict 11144 | -6/Extension | Rescued A7 11171 | -6/Extension | Lost 5 allies 11187 | -6/Extension | Discovered new exit (range 13) 11209 | -6/Extension | Identified exit to Factory 11224 | -6/Extension | Entered Factory 11224 | -5/Factory | Accompanied by 9 allies (A7) 11224 | -5/Factory | Evolved 2 slots: Utility x2 11285 | -5/Factory | Identified exit to Factory 11393 | -5/Factory | Entered another Factory area 11393 | -4/Factory | Accompanied by 2 allies 11393 | -4/Factory | Evolved 2 slots: Utility x2 11424 | -4/Factory | Lost 4 allies 11889 | -4/Factory | Discovered new exit (range 6) 11891 | -4/Factory | Identified exit to Upper Caves 12042 | -4/Factory | Entered Upper Caves 12043 | -4/Upper Caves | Identified exit to Upper Caves 12074 | -4/Upper Caves | Learned location of Quarantine (-3) 12139 | -4/Upper Caves | Entered another Upper Caves area 12142 | -4/Upper Caves | Found DCF Scrap (12 items) 12257 | -4/Upper Caves | Discovered new exit (range 8) 12264 | -4/Upper Caves | Identified exit to Research 12265 | -4/Upper Caves | Entered Research 12265 | -3/Research | Evolved 2 slots: Utility x2 12357 | -3/Research | Spotted B-86 Titan 12512 | -3/Research | Identified exit to Research 12562 | -3/Research | Build established: Hacker-Scout 12681 | -3/Research | Core integrity fell below 50% 12712 | -3/Research | Lost 6 parts (5u1w) 12749 | -3/Research | Entered another Research area 12749 | -2/Research | Evolved 2 slots: Utility x2 12803 | -2/Research | Identified exit to DSF 12803 | -2/Research | Entered DSF 12824 | -2/DSF | Additional patrols routed to DSF 12850 | -2/DSF | Discovered new exit (range 22) 12864 | -2/DSF | Entered Access 12864 | -1/Access | Evolved 2 slots: Utility x2 12884 | -1/Access | Lost 3 parts (3u) 13211 | -1/Access | Core integrity fell below 50% 13268 | -1/Access | System corruption reached 10% 13272 | -1/Access | Core integrity fell below 20% 13288 | -1/Access | Crushed by falling debris 13319 | -1/Access | Lost 6 parts (5u1w) 13362 | -1/Access | Destroyed by P-80 Master with Gamma Rifle Last Messages --------------- 13230_ Slug penetrates Wall. 13235_ Machine Analyzer destroyed. 13236_ P-80 Master destroyed. 13236_ Drone sends a signal. 13256_ System corrupted: Matter fused (-5). 13261_ System Shield destroyed. 13270_ P-80 Master resets P-80 Master, system corruption cleaned. 13271_ The unstable cave ceiling collapses. 13271_ P-80 Master crushed by falling debris. 13282_ P-80 Master Gamma Rifle severed. 13288_ The unstable cave ceiling collapses. 13288_ Crushed by falling debris. 13288_ Mak. Sword destroyed. 13288_ System corrupted by crushing effect (+4). 13294_ The unstable cave ceiling collapses. 13306_ 7X%XYPTZS,%QZLF>BA 2TW 13306_ The unstable cave ceiling collapses. 13326_ System corrupted: Heat flow error (+289). 13345_ System corrupted: Energy discharge (-32). Map ----- +----------------------------------------------------+ | ?????????????????????????# #???#T """""" #??# | | ?????????????????????????# #???#"" """""" #??# | | ?????????????????????????# #????"" "" #### | | ?????????????????????????# #????"" "" #"##+# | | ?????????????????????????# #???????? # | | ??????????????????????#### #?????????? ?# | | ????????????????????###### ##########+##+#### | | ?????##############?# # # | | ?????# """T""" #?### # | | ?????# """ """ #???# # | | ?????#! #???#R + | | ?????# #???# pp # | | ?????# #???# # | | ?????# " #???# # | | ?????#""" #???# ############# # | | ?????# """ #???# ### " # # | | ?????# " #???# #?# """ + ###### | | ?????# #??## k #?# """ # #????? | | ?????# #??## u#?# " # #????? | | ?????# #??##u #?# # #????? | | ##########+########## #?# # #????? | | k #?#[ # #????? | | u #?# # #????? | | #?########### #????? | | A % #???######??? ?????? | | @ #???????????? ?????? | | u #???????????? ?????? | | k u #???????????? ?????? | | #################+## ##???????????? ?????? | | ???????# # #????????????? ?????? | | ????????# # #????????????? ?????? | | ????????# """"" # #???????????????????? | | ????????# """"" # #???????????????????? | | ????????# """"" # #???????????????????? | | ????????# """"" # #???????????????????? | | ????????# """"" # #???????????????????? | | ????????# """"" # #???????????????????? | | ????????# # #???????????????????? | | ????????#!! # t #???????????????????? | | ????????#!! ] # #??????############## | | ????????#!= # #??????# # | | ????????#######"###### #??????# # | | ###################### g######## " # | | # # """ + | | # # """ # | | # # " " | | # + # | | # # # | | # # # | | # # # | +----------------------------------------------------+ Best States ------------- Heat Dissipation 52 Energy Generation 14 Energy Capacity 250 Matter Stores 300 Matter Capacity 300 Sight Range 22 Robot Scan Range 15 Terrain Scan Range 20 Terrain Scan Density 310 ECM Strength 1 Cloak Strength 5 Additional Mass Support 9 Corruption Block 20 Armor Coverage 150 Propulsion Shielding 33 Evasion (%) 50 Targeting Accuracy 24 Melee Accuracy 20 Launcher Accuracy 20 Offensive Hacking 40 Defensive Hacking 34 Item Schematics ----------------- Grenade Launcher | -9/Materials | Scanalyzed Katana | -7/Factory | Scanalyzed Hacking Suite | -7/Factory | Scanalyzed Imp. Propulsion Shielding | -7/Factory | Hacked System Restoration Module | -7/Factory | Hacked Micro-nuke Launcher | -6/Extension | Hacked Mic. Fission Core | -6/Extension | Hacked Energy Well | -6/Extension | Hacked Robot Schematics ------------------ None Fabricated ------------ Katana | x2 | -7/Factory Alien Tech Used ----------------- None Achievements -------------- None Challenges ------------ None Game ------ Seed AlloySalvagingBeamcaster Manual? 0 Play Time 03:47:43 Cumulative 91.9 hours Start 2024.11.11 @ 16:30:14 End 2024.11.11 @ 20:48:01 Sessions 3 Manual Loads 0 Difficulty Rogue Special Mode None Game No. 87 Rogue 87 Adventurer 0 Explorer 0 Win Type - Total 2 Types 2/0/0/0/0/0/0/0/0 Lore% 50 Gallery% 50 Achievement% 43 Wizard Run 0 Options --------- Layout 1 ASCII 0 Keyboard 1 Movement Arrows Keybinds 0 Fullscreen 2 Font 24/Smallcaps Map View 50x35 Zoom Use 0% Tactical HUD 1 Map Filters NONE Filters NONE Steam 1 RUN: 958907a6-d8fd-46e8-b46e-461ebd68f072